[Event "Titled Tuesday Blitz December 20 Late 2022"]
[White "Senft, Sean"]
[Black "Crevatin, Leo"]
[WhiteFideId "2044960"]
[BlackFideId "1726307"]
[WhiteElo "1989"]
[BlackElo "2190"]
[Result "0-1"]
[Round "03"]
[TimeControl "180+1"]
[Date "2022.12.21"]
[WhiteClock "0:01:59"]
[BlackClock "0:01:17"]

1. d4 {[%clk 0:03:00]}  Nf6 {[%clk 0:02:59]} 2. c4 {[%clk 0:03:01]}  g6 {[%clk 0:02:59]} 3. Nc3 {[%clk 0:03:01]}  Bg7 {[%clk 0:02:59]} 4. e4 {[%clk 0:03:02]}  d6 {[%clk 0:03:00]} 5. f4 {[%clk 0:03:02]}  O-O {[%clk 0:03:00]} 6. Nf3 {[%clk 0:03:03]}  c5 {[%clk 0:02:56]} 7. d5 {[%clk 0:03:03]}  e6 {[%clk 0:02:56]} 8. Be2 {[%clk 0:03:04]}  exd5 {[%clk 0:02:56]} 9. exd5 {[%clk 0:03:04]}  Na6 {[%clk 0:02:52]} 10. O-O {[%clk 0:03:05]}  Nc7 {[%clk 0:02:52]} 11. Bd3 {[%clk 0:03:04]}  a6 {[%clk 0:02:49]} 12. a4 {[%clk 0:03:05]}  Re8 {[%clk 0:02:43]} 13. f5 {[%clk 0:03:06]}  Ng4 {[%clk 0:02:43]} 14. Bg5 {[%clk 0:03:05]}  f6 {[%clk 0:02:39]} 15. Bf4 {[%clk 0:03:05]}  g5 {[%clk 0:02:35]} 16. Bd2 {[%clk 0:03:03]}  Ne3 {[%clk 0:02:31]} 17. Bxe3 {[%clk 0:03:03]}  Rxe3 {[%clk 0:02:31]} 18. Qd2 {[%clk 0:03:04]}  Re8 {[%clk 0:02:30]} 19. Rae1 {[%clk 0:03:04]}  Bd7 {[%clk 0:02:30]} 20. a5 {[%clk 0:03:01]}  Rb8 {[%clk 0:02:26]} 21. Ne4 {[%clk 0:02:59]}  Bc8 {[%clk 0:02:13]} 22. Re2 {[%clk 0:02:50]}  b6 {[%clk 0:02:13]} 23. Rfe1 {[%clk 0:02:48]}  bxa5 {[%clk 0:02:12]} 24. Ng3 {[%clk 0:02:48]}  Rxe2 {[%clk 0:01:57]} 25. Rxe2 {[%clk 0:02:49]}  Bd7 {[%clk 0:01:53]} 26. Nh5 {[%clk 0:02:46]}  a4 {[%clk 0:01:44]} 27. Bb1 {[%clk 0:02:42]}  Qf8 {[%clk 0:01:40]} 28. Re6 {[%clk 0:02:38]}  Nxe6 {[%clk 0:01:36]} 29. fxe6 {[%clk 0:02:39]}  Be8 {[%clk 0:01:36]} 30. Ng3 {[%clk 0:02:30]}  Bg6 {[%clk 0:01:34]} 31. Bxg6 {[%clk 0:02:25]}  hxg6 {[%clk 0:01:33]} 32. Qc2 {[%clk 0:02:25]}  f5 {[%clk 0:01:32]} 33. Nxg5 {[%clk 0:02:25]}  Qf6 {[%clk 0:01:27]} 34. h4 {[%clk 0:02:19]}  Rb3 {[%clk 0:01:24]} 35. Nf3 {[%clk 0:02:05]}  Qxb2 {[%clk 0:01:20]} 36. Qxb2 {[%clk 0:01:59]}  Rxb2 {[%clk 0:01:19]} 37. Ng5 {[%clk 0:01:59]}  Bf6 {[%clk 0:01:17]} 0-1


[Site "https://www.chess.com"]

[Event "Titled Tuesday Blitz December 20 Late 2022"]
[White "Shimanov, Aleksandr"]
[Black "Leitao, Rafael"]
[WhiteFideId "4198603"]
[BlackFideId "2101246"]
[WhiteElo "2605"]
[BlackElo "2609"]
[Result "0-1"]
[Round "03"]
[TimeControl "180+1"]
[Date "2022.12.20"]
[WhiteClock "0:00:03"]
[BlackClock "0:00:04"]

1. e4 {[%clk 0:02:57]}  c5 {[%clk 0:02:59]} 2. c3 {[%clk 0:02:57]}  Nf6 {[%clk 0:02:58]} 3. e5 {[%clk 0:02:57]}  Nd5 {[%clk 0:02:58]} 4. Nf3 {[%clk 0:02:57]}  d6 {[%clk 0:02:55]} 5. Bb5+ {[%clk 0:02:57]}  Nc6 {[%clk 0:02:52]} 6. O-O {[%clk 0:02:50]}  e6 {[%clk 0:02:49]} 7. d4 {[%clk 0:02:46]}  cxd4 {[%clk 0:02:34]} 8. Qxd4 {[%clk 0:02:40]}  Qb6 {[%clk 0:02:11]} 9. Qxb6 {[%clk 0:02:06]}  Nxb6 {[%clk 0:02:09]} 10. Rd1 {[%clk 0:01:58]}  d5 {[%clk 0:02:09]} 11. Be3 {[%clk 0:01:57]}  Bd7 {[%clk 0:02:08]} 12. a4 {[%clk 0:01:54]}  Nc4 {[%clk 0:01:43]} 13. Bxc4 {[%clk 0:01:53]}  dxc4 {[%clk 0:01:43]} 14. a5 {[%clk 0:01:54]}  Ne7 {[%clk 0:01:32]} 15. Nbd2 {[%clk 0:01:52]}  Bb5 {[%clk 0:01:31]} 16. Bc5 {[%clk 0:01:48]}  Nd5 {[%clk 0:01:26]} 17. Bxf8 {[%clk 0:01:46]}  Rxf8 {[%clk 0:01:26]} 18. Ne4 {[%clk 0:01:47]}  Ke7 {[%clk 0:01:26]} 19. Nd6 {[%clk 0:01:43]}  Ba6 {[%clk 0:01:26]} 20. Rd4 {[%clk 0:01:43]}  Rad8 {[%clk 0:01:21]} 21. g3 {[%clk 0:01:06]}  f6 {[%clk 0:01:03]} 22. Ne4 {[%clk 0:01:06]}  Nc7 {[%clk 0:00:43]} 23. exf6+ {[%clk 0:00:55]}  gxf6 {[%clk 0:00:42]} 24. Nc5 {[%clk 0:00:55]}  Rxd4 {[%clk 0:00:37]} 25. Nxd4 {[%clk 0:00:56]}  Rd8 {[%clk 0:00:29]} 26. Re1 {[%clk 0:00:53]}  e5 {[%clk 0:00:29]} 27. f4 {[%clk 0:00:53]}  Rd5 {[%clk 0:00:27]} 28. Nf5+ {[%clk 0:00:35]}  Kf7 {[%clk 0:00:27]} 29. Ne4 {[%clk 0:00:36]}  Rxa5 {[%clk 0:00:23]} 30. fxe5 {[%clk 0:00:07]}  Rxe5 {[%clk 0:00:22]} 31. Ned6+ {[%clk 0:00:08]}  Ke6 {[%clk 0:00:21]} 32. Rd1 {[%clk 0:00:09]}  Rxf5 {[%clk 0:00:19]} 33. Nxf5 {[%clk 0:00:09]}  Kxf5 {[%clk 0:00:19]} 34. Rd7 {[%clk 0:00:10]}  Ne6 {[%clk 0:00:20]} 35. Rxh7 {[%clk 0:00:11]}  Nc5 {[%clk 0:00:20]} 36. Rg7 {[%clk 0:00:09]}  Ne6 {[%clk 0:00:15]} 37. Rg8 {[%clk 0:00:09]}  Bb5 {[%clk 0:00:12]} 38. h4 {[%clk 0:00:08]}  Bc6 {[%clk 0:00:11]} 39. h5 {[%clk 0:00:08]}  Ng5 {[%clk 0:00:12]} 40. h6 {[%clk 0:00:09]}  Be4 {[%clk 0:00:12]} 41. Kf2 {[%clk 0:00:06]}  Kg4 {[%clk 0:00:11]} 42. Rg7 {[%clk 0:00:06]}  Kh5 {[%clk 0:00:12]} 43. h7 {[%clk 0:00:03]}  Nxh7 {[%clk 0:00:10]} 44. Ke3 {[%clk 0:00:04]}  Ng5 {[%clk 0:00:08]} 45. Kf4 {[%clk 0:00:04]}  Kh6 {[%clk 0:00:06]} 46. Rc7 {[%clk 0:00:04]}  Bd5 {[%clk 0:00:05]} 47. Re7 {[%clk 0:00:03]}  Kg6 {[%clk 0:00:05]} 48. Rd7 {[%clk 0:00:03]}  Ne6+ {[%clk 0:00:04]} 49. Ke3 {[%clk 0:00:03]}  Bc6 {[%clk 0:00:05]} 50. Re7 {[%clk 0:00:04]}  Kf5 {[%clk 0:00:05]} 51. g4+ {[%clk 0:00:02]}  Ke5 {[%clk 0:00:05]} 52. Rh7 {[%clk 0:00:02]}  a5 {[%clk 0:00:04]} 53. Rh5+ {[%clk 0:00:03]}  Ng5 {[%clk 0:00:03]} 54. Rh8 {[%clk 0:00:03]}  Kd6 {[%clk 0:00:03]} 55. Ra8 {[%clk 0:00:02]}  b6 {[%clk 0:00:03]} 56. Rf8 {[%clk 0:00:02]}  Ne4 {[%clk 0:00:03]} 57. Kd4 {[%clk 0:00:02]}  Ke7 {[%clk 0:00:03]} 58. Rb8 {[%clk 0:00:02]}  b5 {[%clk 0:00:03]} 59. Rb6 {[%clk 0:00:02]}  Kd7 {[%clk 0:00:03]} 60. Ra6 {[%clk 0:00:02]}  a4 {[%clk 0:00:04]} 61. Ra7+ {[%clk 0:00:03]}  Kd6 {[%clk 0:00:04]} 62. Ra6 {[%clk 0:00:03]}  Kc7 {[%clk 0:00:04]} 63. Ra7+ {[%clk 0:00:04]}  Bb7 {[%clk 0:00:04]} 64. Rxb7+ {[%clk 0:00:03]}  Kxb7 {[%clk 0:00:05]} 65. Kxe4 {[%clk 0:00:04]}  b4 {[%clk 0:00:05]} 66. Kd4 {[%clk 0:00:03]}  a3 {[%clk 0:00:04]} 0-1


[Site "https://www.chess.com"]

[Event "Titled Tuesday Blitz December 20 Late 2022"]
[White "Sivakumar, Shaaketh"]
[Black "Donchenko, Alexander"]
[WhiteFideId "30940176"]
[BlackFideId "24603295"]
[WhiteElo "2174"]
[BlackElo "2581"]
[Result "0-1"]
[Round "03"]
[TimeControl "180+1"]
[Date "2022.12.20"]
[WhiteClock "0:00:48"]
[BlackClock "0:01:09"]

1. d4 {[%clk 0:03:00]}  Nf6 {[%clk 0:03:00]} 2. c4 {[%clk 0:03:00]}  e6 {[%clk 0:03:00]} 3. g3 {[%clk 0:02:59]}  c5 {[%clk 0:03:00]} 4. d5 {[%clk 0:03:00]}  exd5 {[%clk 0:03:01]} 5. cxd5 {[%clk 0:03:00]}  d6 {[%clk 0:03:02]} 6. Nc3 {[%clk 0:03:00]}  g6 {[%clk 0:03:03]} 7. Bg2 {[%clk 0:03:00]}  Bg7 {[%clk 0:03:03]} 8. Nf3 {[%clk 0:03:00]}  O-O {[%clk 0:03:04]} 9. O-O {[%clk 0:03:00]}  Re8 {[%clk 0:03:05]} 10. Bf4 {[%clk 0:03:00]}  Bf5 {[%clk 0:03:05]} 11. Nd2 {[%clk 0:02:59]}  Nh5 {[%clk 0:03:03]} 12. Be3 {[%clk 0:02:58]}  a6 {[%clk 0:02:55]} 13. a4 {[%clk 0:02:57]}  Nd7 {[%clk 0:02:54]} 14. h3 {[%clk 0:02:49]}  Nxg3 {[%clk 0:02:53]} 15. fxg3 {[%clk 0:02:48]}  Rxe3 {[%clk 0:02:52]} 16. Kh2 {[%clk 0:02:36]}  h5 {[%clk 0:02:42]} 17. Nc4 {[%clk 0:02:35]}  Qg5 {[%clk 0:02:27]} 18. Nxe3 {[%clk 0:02:24]}  Qxe3 {[%clk 0:02:28]} 19. Rf3 {[%clk 0:02:14]}  Qh6 {[%clk 0:02:01]} 20. e4 {[%clk 0:02:14]}  Bg4 {[%clk 0:02:01]} 21. hxg4 {[%clk 0:02:01]}  hxg4+ {[%clk 0:02:02]} 22. Kg1 {[%clk 0:02:02]}  Bd4+ {[%clk 0:01:59]} 23. Rf2 {[%clk 0:02:02]}  Qe3 {[%clk 0:01:55]} 24. Qe2 {[%clk 0:01:57]}  Qxg3 {[%clk 0:01:54]} 25. e5 {[%clk 0:01:50]}  Nxe5 {[%clk 0:01:41]} 26. Ne4 {[%clk 0:01:50]}  Qh4 {[%clk 0:01:36]} 27. Ra3 {[%clk 0:01:46]}  f5 {[%clk 0:01:29]} 28. Nxd6 {[%clk 0:01:33]}  g3 {[%clk 0:01:27]} 29. Kf1 {[%clk 0:01:24]}  gxf2 {[%clk 0:01:21]} 30. Rh3 {[%clk 0:01:24]}  Qf4 {[%clk 0:01:15]} 31. Qd1 {[%clk 0:01:03]}  Ng4 {[%clk 0:01:14]} 32. Nc4 {[%clk 0:00:55]}  Nh2+ {[%clk 0:01:11]} 33. Rxh2 {[%clk 0:00:52]}  Qxh2 {[%clk 0:01:12]} 34. Qf3 {[%clk 0:00:48]}  Re8 {[%clk 0:01:09]} 0-1


[Site "https://www.chess.com"]

[Event "Titled Tuesday Blitz December 20 Late 2022"]
[White "Sjugirov, Sanan"]
[Black "Mikhailov, Viacheslav"]
[WhiteFideId "4189302"]
[BlackFideId "4187369"]
[WhiteElo "2613"]
[BlackElo "2381"]
[Result "1-0"]
[Round "03"]
[TimeControl "180+1"]
[Date "2022.12.20"]
[WhiteClock "0:00:10"]
[BlackClock "0:00:20"]

1. d4 {[%clk 0:03:00]}  Nf6 {[%clk 0:02:59]} 2. c4 {[%clk 0:03:00]}  g6 {[%clk 0:03:00]} 3. Nc3 {[%clk 0:03:00]}  Bg7 {[%clk 0:03:00]} 4. e4 {[%clk 0:03:00]}  O-O {[%clk 0:03:01]} 5. Nf3 {[%clk 0:03:01]}  d6 {[%clk 0:03:01]} 6. Be2 {[%clk 0:03:01]}  Bg4 {[%clk 0:03:02]} 7. Be3 {[%clk 0:02:51]}  Nbd7 {[%clk 0:02:59]} 8. h3 {[%clk 0:02:37]}  Bxf3 {[%clk 0:02:59]} 9. Bxf3 {[%clk 0:02:38]}  c5 {[%clk 0:02:57]} 10. d5 {[%clk 0:02:36]}  a6 {[%clk 0:02:57]} 11. O-O {[%clk 0:02:25]}  Ne8 {[%clk 0:02:55]} 12. Qd2 {[%clk 0:02:11]}  Nc7 {[%clk 0:02:52]} 13. Be2 {[%clk 0:02:01]}  b5 {[%clk 0:02:14]} 14. cxb5 {[%clk 0:02:00]}  axb5 {[%clk 0:02:15]} 15. Nxb5 {[%clk 0:01:57]}  Nxb5 {[%clk 0:02:14]} 16. Bxb5 {[%clk 0:01:57]}  Qc7 {[%clk 0:02:05]} 17. a4 {[%clk 0:01:52]}  Rfb8 {[%clk 0:02:04]} 18. Rab1 {[%clk 0:01:44]}  Ne5 {[%clk 0:01:54]} 19. Rfc1 {[%clk 0:01:40]}  Rxb5 {[%clk 0:01:39]} 20. axb5 {[%clk 0:01:40]}  Qb7 {[%clk 0:01:40]} 21. b4 {[%clk 0:01:28]}  c4 {[%clk 0:01:39]} 22. f4 {[%clk 0:01:16]}  Nd7 {[%clk 0:01:37]} 23. Rxc4 {[%clk 0:01:13]}  Qxb5 {[%clk 0:01:37]} 24. Rbc1 {[%clk 0:01:10]}  h5 {[%clk 0:01:34]} 25. Rc8+ {[%clk 0:01:05]}  Rxc8 {[%clk 0:01:34]} 26. Rxc8+ {[%clk 0:01:05]}  Kh7 {[%clk 0:01:35]} 27. Rc7 {[%clk 0:01:02]}  Bf6 {[%clk 0:01:32]} 28. Bd4 {[%clk 0:00:48]}  h4 {[%clk 0:01:25]} 29. Kh2 {[%clk 0:00:40]}  Kg7 {[%clk 0:01:09]} 30. Rxd7 {[%clk 0:00:24]}  Qxd7 {[%clk 0:01:03]} 31. e5 {[%clk 0:00:24]}  dxe5 {[%clk 0:00:59]} 32. fxe5 {[%clk 0:00:24]}  Bxe5+ {[%clk 0:00:44]} 33. Bxe5+ {[%clk 0:00:23]}  f6 {[%clk 0:00:45]} 34. Bf4 {[%clk 0:00:13]}  g5 {[%clk 0:00:44]} 35. Be3 {[%clk 0:00:14]}  Qf5 {[%clk 0:00:42]} 36. b5 {[%clk 0:00:09]}  Qe5+ {[%clk 0:00:42]} 37. Kh1 {[%clk 0:00:09]}  Qa1+ {[%clk 0:00:38]} 38. Bg1 {[%clk 0:00:09]}  g4 {[%clk 0:00:37]} 39. hxg4 {[%clk 0:00:09]}  Qb1 {[%clk 0:00:36]} 40. b6 {[%clk 0:00:06]}  Kf7 {[%clk 0:00:35]} 41. Qe3 {[%clk 0:00:05]}  Qb4 {[%clk 0:00:27]} 42. Qe6+ {[%clk 0:00:05]}  Kf8 {[%clk 0:00:26]} 43. d6 {[%clk 0:00:06]}  exd6 {[%clk 0:00:25]} 44. Qc8+ {[%clk 0:00:06]}  Kg7 {[%clk 0:00:25]} 45. b7 {[%clk 0:00:07]}  h3 {[%clk 0:00:25]} 46. Qd7+ {[%clk 0:00:07]}  Kh6 {[%clk 0:00:25]} 47. Be3+ {[%clk 0:00:06]}  Kg6 {[%clk 0:00:25]} 48. Qf5+ {[%clk 0:00:07]}  Kf7 {[%clk 0:00:25]} 49. gxh3 {[%clk 0:00:06]}  Qxb7+ {[%clk 0:00:23]} 50. Kh2 {[%clk 0:00:07]}  Qb2+ {[%clk 0:00:23]} 51. Qf2 {[%clk 0:00:07]}  Qe5+ {[%clk 0:00:23]} 52. Qf4 {[%clk 0:00:07]}  Qb2+ {[%clk 0:00:20]} 53. Kg3 {[%clk 0:00:08]}  Kg7 {[%clk 0:00:16]} 54. Qh6+ {[%clk 0:00:06]}  Kf7 {[%clk 0:00:16]} 55. Qh7+ {[%clk 0:00:07]}  Ke6 {[%clk 0:00:16]} 56. Qe4+ {[%clk 0:00:07]}  Kf7 {[%clk 0:00:17]} 57. Qd5+ {[%clk 0:00:08]}  Kg6 {[%clk 0:00:16]} 58. Qxd6 {[%clk 0:00:06]}  Qb1 {[%clk 0:00:17]} 59. Qf4 {[%clk 0:00:06]}  Qe1+ {[%clk 0:00:17]} 60. Bf2 {[%clk 0:00:06]}  Qc3+ {[%clk 0:00:17]} 61. Qf3 {[%clk 0:00:07]}  Qc7+ {[%clk 0:00:17]} 62. Kg2 {[%clk 0:00:07]}  Qc8 {[%clk 0:00:17]} 63. Qf5+ {[%clk 0:00:07]}  Qxf5 {[%clk 0:00:18]} 64. gxf5+ {[%clk 0:00:07]}  Kxf5 {[%clk 0:00:19]} 65. Kg3 {[%clk 0:00:08]}  Kg5 {[%clk 0:00:20]} 66. h4+ {[%clk 0:00:08]}  Kf5 {[%clk 0:00:20]} 67. Kf3 {[%clk 0:00:09]}  Kg6 {[%clk 0:00:20]} 68. Kg4 {[%clk 0:00:10]} 1-0


[Site "https://www.chess.com"]

[Event "Titled Tuesday Blitz December 20 Late 2022"]
[White "Solon, Nathan"]
[Black "Makarian, Rudik"]
[WhiteFideId "2017229"]
[BlackFideId "44105681"]
[WhiteElo "2650"]
[BlackElo "2440"]
[Result "0-1"]
[Round "03"]
[TimeControl "180+1"]
[Date "2022.12.20"]
[WhiteClock "0:00:09"]
[BlackClock "0:01:01"]

1. Nf3 {[%clk 0:03:00]}  Nf6 {[%clk 0:02:56]} 2. g3 {[%clk 0:03:01]}  b5 {[%clk 0:02:56]} 3. Bg2 {[%clk 0:03:00]}  Bb7 {[%clk 0:02:56]} 4. O-O {[%clk 0:03:00]}  e6 {[%clk 0:02:57]} 5. a4 {[%clk 0:02:57]}  b4 {[%clk 0:02:57]} 6. b3 {[%clk 0:02:57]}  Be7 {[%clk 0:02:56]} 7. Bb2 {[%clk 0:02:58]}  O-O {[%clk 0:02:56]} 8. d3 {[%clk 0:02:57]}  c5 {[%clk 0:02:57]} 9. e4 {[%clk 0:02:57]}  Nc6 {[%clk 0:02:57]} 10. Nbd2 {[%clk 0:02:57]}  d5 {[%clk 0:02:57]} 11. e5 {[%clk 0:02:50]}  Nd7 {[%clk 0:02:57]} 12. Re1 {[%clk 0:02:50]}  Qc7 {[%clk 0:02:57]} 13. h4 {[%clk 0:02:46]}  Rfc8 {[%clk 0:02:56]} 14. Nf1 {[%clk 0:02:38]}  a5 {[%clk 0:02:55]} 15. h5 {[%clk 0:02:30]}  h6 {[%clk 0:02:55]} 16. N1h2 {[%clk 0:02:29]}  Qd8 {[%clk 0:02:56]} 17. Ng4 {[%clk 0:02:22]}  Nf8 {[%clk 0:02:53]} 18. Qd2 {[%clk 0:02:17]}  Nh7 {[%clk 0:02:52]} 19. Rad1 {[%clk 0:02:05]}  Rc7 {[%clk 0:02:46]} 20. Bc1 {[%clk 0:02:05]}  Rac8 {[%clk 0:02:46]} 21. Qe2 {[%clk 0:02:04]}  Bf8 {[%clk 0:02:27]} 22. Bf4 {[%clk 0:02:03]}  Ne7 {[%clk 0:02:24]} 23. Nh4 {[%clk 0:01:59]}  Rd7 {[%clk 0:02:17]} 24. Qd2 {[%clk 0:01:54]}  Nc6 {[%clk 0:02:15]} 25. Nf3 {[%clk 0:01:47]}  Rcc7 {[%clk 0:02:14]} 26. Kh2 {[%clk 0:01:43]}  c4 {[%clk 0:02:00]} 27. d4 {[%clk 0:01:37]}  cxb3 {[%clk 0:01:58]} 28. cxb3 {[%clk 0:01:38]}  Ne7 {[%clk 0:01:57]} 29. Bf1 {[%clk 0:01:33]}  Rc3 {[%clk 0:01:56]} 30. Re3 {[%clk 0:01:31]}  Rdc7 {[%clk 0:01:55]} 31. Bd3 {[%clk 0:01:31]}  Nf5 {[%clk 0:01:53]} 32. Ree1 {[%clk 0:01:15]}  Rxb3 {[%clk 0:01:53]} 33. Bxf5 {[%clk 0:01:09]}  Rxf3 {[%clk 0:01:47]} 34. Bb1 {[%clk 0:01:04]}  Rfc3 {[%clk 0:01:42]} 35. Re3 {[%clk 0:00:54]}  Rxe3 {[%clk 0:01:40]} 36. Bxe3 {[%clk 0:00:46]}  Ng5 {[%clk 0:01:39]} 37. Bxg5 {[%clk 0:00:34]}  Qxg5 {[%clk 0:01:40]} 38. Qd3 {[%clk 0:00:35]}  Qxh5+ {[%clk 0:01:39]} 39. Kg2 {[%clk 0:00:33]}  Qf5 {[%clk 0:01:27]} 40. Qe2 {[%clk 0:00:34]}  Ba6 {[%clk 0:01:15]} 41. Qxa6 {[%clk 0:00:24]}  Qxg4 {[%clk 0:01:15]} 42. Qd3 {[%clk 0:00:24]}  g6 {[%clk 0:01:13]} 43. Rh1 {[%clk 0:00:22]}  Rc3 {[%clk 0:01:10]} 44. Qd2 {[%clk 0:00:22]}  Qf3+ {[%clk 0:01:08]} 45. Kg1 {[%clk 0:00:21]}  h5 {[%clk 0:01:06]} 46. Rh4 {[%clk 0:00:20]}  Rb3 {[%clk 0:01:03]} 47. Bc2 {[%clk 0:00:19]}  Qc3 {[%clk 0:01:00]} 48. Qxc3 {[%clk 0:00:09]}  Rxc3 {[%clk 0:01:01]} 0-1


[Site "https://www.chess.com"]

[Event "Titled Tuesday Blitz December 20 Late 2022"]
[White "Suder, Jakub"]
[Black "Zeman, Matyas"]
[WhiteFideId "1195310"]
[BlackFideId "364398"]
[WhiteElo "2245"]
[BlackElo "2254"]
[Result "1-0"]
[Round "03"]
[TimeControl "180+1"]
[Date "2022.12.21"]
[WhiteClock "0:01:08"]
[BlackClock "0:00:07"]

1. d4 {[%clk 0:03:00]}  e6 {[%clk 0:02:53]} 2. c4 {[%clk 0:03:00]}  d5 {[%clk 0:02:52]} 3. Nc3 {[%clk 0:03:01]}  c6 {[%clk 0:02:53]} 4. e4 {[%clk 0:03:00]}  dxe4 {[%clk 0:02:53]} 5. Nxe4 {[%clk 0:03:01]}  Bb4+ {[%clk 0:02:52]} 6. Bd2 {[%clk 0:03:01]}  Qxd4 {[%clk 0:02:52]} 7. Bxb4 {[%clk 0:03:01]}  Qxe4+ {[%clk 0:02:53]} 8. Be2 {[%clk 0:03:02]}  Na6 {[%clk 0:02:52]} 9. Ba5 {[%clk 0:03:02]}  b6 {[%clk 0:02:52]} 10. Qd6 {[%clk 0:03:02]}  Bd7 {[%clk 0:02:52]} 11. Rd1 {[%clk 0:03:01]}  O-O-O {[%clk 0:02:51]} 12. Bc3 {[%clk 0:03:00]}  f6 {[%clk 0:02:03]} 13. Nf3 {[%clk 0:02:55]}  Nh6 {[%clk 0:02:00]} 14. Nd4 {[%clk 0:02:29]}  Nf5 {[%clk 0:01:56]} 15. Nxf5 {[%clk 0:02:08]}  exf5 {[%clk 0:01:56]} 16. f3 {[%clk 0:01:57]}  Qe6 {[%clk 0:01:53]} 17. Qa3 {[%clk 0:01:49]}  Kb7 {[%clk 0:01:35]} 18. Kf2 {[%clk 0:01:48]}  Rhe8 {[%clk 0:01:32]} 19. Rhe1 {[%clk 0:01:49]}  Qe3+ {[%clk 0:01:24]} 20. Kf1 {[%clk 0:01:49]}  Be6 {[%clk 0:00:55]} 21. Rxd8 {[%clk 0:01:26]}  Rxd8 {[%clk 0:00:51]} 22. c5 {[%clk 0:01:14]}  b5 {[%clk 0:00:17]} 23. Bxb5 {[%clk 0:01:11]}  Qxe1+ {[%clk 0:00:17]} 24. Kxe1 {[%clk 0:01:09]}  cxb5 {[%clk 0:00:16]} 25. c6+ {[%clk 0:01:09]}  Kb6 {[%clk 0:00:07]} 26. Qa5+ {[%clk 0:01:09]}  Kxc6 {[%clk 0:00:07]} 27. Qxd8 {[%clk 0:01:08]} 1-0


[Site "https://www.chess.com"]

[Event "Titled Tuesday Blitz December 20 Late 2022"]
[White "Szyszylo, Rafal"]
[Black "Sebag, Marie"]
[WhiteFideId "1109626"]
[BlackFideId "617822"]
[WhiteElo "1981"]
[BlackElo "2440"]
[Result "1/2-1/2"]
[Round "03"]
[TimeControl "180+1"]
[Date "2022.12.21"]
[WhiteClock "0:00:17"]
[BlackClock "0:00:10"]

1. e4 {[%clk 0:03:00]}  d6 {[%clk 0:02:59]} 2. d4 {[%clk 0:02:58]}  Nf6 {[%clk 0:02:59]} 3. Nc3 {[%clk 0:02:53]}  g6 {[%clk 0:02:59]} 4. Nge2 {[%clk 0:02:52]}  Bg7 {[%clk 0:02:59]} 5. g3 {[%clk 0:02:53]}  O-O {[%clk 0:02:58]} 6. Bg2 {[%clk 0:02:53]}  e5 {[%clk 0:02:58]} 7. h3 {[%clk 0:02:52]}  Nbd7 {[%clk 0:02:55]} 8. Be3 {[%clk 0:02:50]}  Re8 {[%clk 0:02:54]} 9. O-O {[%clk 0:02:49]}  exd4 {[%clk 0:02:53]} 10. Nxd4 {[%clk 0:02:49]}  Nc5 {[%clk 0:02:54]} 11. f3 {[%clk 0:02:38]}  c6 {[%clk 0:02:50]} 12. Qd2 {[%clk 0:02:35]}  b5 {[%clk 0:02:38]} 13. a3 {[%clk 0:02:32]}  Qc7 {[%clk 0:02:37]} 14. Rad1 {[%clk 0:02:26]}  Bb7 {[%clk 0:02:35]} 15. b4 {[%clk 0:02:14]}  Ncd7 {[%clk 0:02:28]} 16. Ncxb5 {[%clk 0:02:11]}  cxb5 {[%clk 0:02:24]} 17. Nxb5 {[%clk 0:02:11]}  Qc6 {[%clk 0:02:11]} 18. Nxd6 {[%clk 0:02:11]}  Nb6 {[%clk 0:01:32]} 19. Nxe8 {[%clk 0:02:08]}  Rxe8 {[%clk 0:01:31]} 20. Qd6 {[%clk 0:01:53]}  Qxc2 {[%clk 0:01:27]} 21. Bxb6 {[%clk 0:01:49]}  axb6 {[%clk 0:01:24]} 22. Qxb6 {[%clk 0:01:49]}  Qc8 {[%clk 0:01:08]} 23. Rd6 {[%clk 0:01:43]}  Nd7 {[%clk 0:00:52]} 24. Qb5 {[%clk 0:01:27]}  Ne5 {[%clk 0:00:27]} 25. Rfd1 {[%clk 0:01:24]}  Nc4 {[%clk 0:00:24]} 26. Rd7 {[%clk 0:01:16]}  Bc6 {[%clk 0:00:22]} 27. Qxc4 {[%clk 0:01:10]}  Bxd7 {[%clk 0:00:22]} 28. Qxc8 {[%clk 0:01:05]}  Bxc8 {[%clk 0:00:22]} 29. f4 {[%clk 0:00:44]}  Be6 {[%clk 0:00:21]} 30. e5 {[%clk 0:00:44]}  Rc8 {[%clk 0:00:19]} 31. Be4 {[%clk 0:00:25]}  Rc3 {[%clk 0:00:17]} 32. Rd3 {[%clk 0:00:25]}  Rc1+ {[%clk 0:00:16]} 33. Kf2 {[%clk 0:00:25]}  Bf8 {[%clk 0:00:16]} 34. g4 {[%clk 0:00:23]}  Ra1 {[%clk 0:00:16]} 35. Ke3 {[%clk 0:00:22]}  Bc4 {[%clk 0:00:14]} 36. Rc3 {[%clk 0:00:22]}  Bb5 {[%clk 0:00:14]} 37. f5 {[%clk 0:00:21]}  Kg7 {[%clk 0:00:13]} 38. f6+ {[%clk 0:00:20]}  Kh6 {[%clk 0:00:12]} 39. h4 {[%clk 0:00:20]}  g5 {[%clk 0:00:12]} 40. h5 {[%clk 0:00:18]}  Re1+ {[%clk 0:00:11]} 41. Kd4 {[%clk 0:00:17]}  Rd1+ {[%clk 0:00:10]} 42. Ke3 {[%clk 0:00:17]}  Re1+ {[%clk 0:00:10]} 43. Kd4 {[%clk 0:00:17]}  Rd1+ {[%clk 0:00:09]} 44. Ke3 {[%clk 0:00:17]}  Re1+ {[%clk 0:00:10]} 1/2-1/2


[Site "https://www.chess.com"]

[Event "Titled Tuesday Blitz December 20 Late 2022"]
[White "Tanenbaum, Zachary"]
[Black "Shapiro, Daniel"]
[WhiteFideId "2060850"]
[BlackFideId "2001780"]
[WhiteElo "2175"]
[BlackElo "2330"]
[Result "1-0"]
[Round "03"]
[TimeControl "180+1"]
[Date "2022.12.21"]
[WhiteClock "0:00:18"]
[BlackClock "0:00:01"]

1. e4 {[%clk 0:02:55]}  e5 {[%clk 0:03:00]} 2. Nf3 {[%clk 0:02:55]}  Nc6 {[%clk 0:03:00]} 3. Bc4 {[%clk 0:02:55]}  Be7 {[%clk 0:02:59]} 4. d4 {[%clk 0:02:55]}  d6 {[%clk 0:02:59]} 5. dxe5 {[%clk 0:02:55]}  dxe5 {[%clk 0:02:59]} 6. Qxd8+ {[%clk 0:02:55]}  Bxd8 {[%clk 0:02:59]} 7. O-O {[%clk 0:02:55]}  Nf6 {[%clk 0:02:57]} 8. Nc3 {[%clk 0:02:55]}  O-O {[%clk 0:02:49]} 9. Be3 {[%clk 0:02:55]}  Re8 {[%clk 0:02:35]} 10. Ng5 {[%clk 0:02:49]}  Be6 {[%clk 0:02:13]} 11. Nxe6 {[%clk 0:02:48]}  fxe6 {[%clk 0:02:14]} 12. Rad1 {[%clk 0:02:33]}  a6 {[%clk 0:02:10]} 13. a4 {[%clk 0:02:13]}  Ng4 {[%clk 0:02:01]} 14. Bc1 {[%clk 0:01:38]}  Nd4 {[%clk 0:01:57]} 15. f3 {[%clk 0:01:36]}  Nf6 {[%clk 0:01:48]} 16. f4 {[%clk 0:01:36]}  Nc6 {[%clk 0:01:27]} 17. f5 {[%clk 0:01:35]}  Nd4 {[%clk 0:01:22]} 18. fxe6 {[%clk 0:01:32]}  Nxe6 {[%clk 0:01:15]} 19. Nd5 {[%clk 0:01:18]}  c6 {[%clk 0:01:10]} 20. Nxf6+ {[%clk 0:01:14]}  gxf6 {[%clk 0:00:57]} 21. Rd7 {[%clk 0:01:15]}  b5 {[%clk 0:00:40]} 22. axb5 {[%clk 0:01:15]}  axb5 {[%clk 0:00:39]} 23. Bb3 {[%clk 0:01:16]}  Kh8 {[%clk 0:00:16]} 24. Be3 {[%clk 0:00:50]}  Nd4 {[%clk 0:00:05]} 25. Bxd4 {[%clk 0:00:36]}  exd4 {[%clk 0:00:06]} 26. Rf3 {[%clk 0:00:35]}  c5 {[%clk 0:00:05]} 27. Rh3 {[%clk 0:00:31]}  Re7 {[%clk 0:00:05]} 28. Rxe7 {[%clk 0:00:24]}  Bxe7 {[%clk 0:00:05]} 29. Bd5 {[%clk 0:00:25]}  Ra1+ {[%clk 0:00:04]} 30. Kf2 {[%clk 0:00:26]}  Rc1 {[%clk 0:00:04]} 31. Rg3 {[%clk 0:00:21]}  h6 {[%clk 0:00:04]} 32. Rg8+ {[%clk 0:00:20]}  Kh7 {[%clk 0:00:04]} 33. Rb8 {[%clk 0:00:21]}  Rxc2+ {[%clk 0:00:04]} 34. Kf3 {[%clk 0:00:22]}  Rxb2 {[%clk 0:00:04]} 35. Rb7 {[%clk 0:00:22]}  d3 {[%clk 0:00:04]} 36. Rxe7+ {[%clk 0:00:22]}  Kg6 {[%clk 0:00:04]} 37. Be6 {[%clk 0:00:20]}  h5 {[%clk 0:00:03]} 38. Bf5+ {[%clk 0:00:20]}  Kg5 {[%clk 0:00:03]} 39. Rg7+ {[%clk 0:00:20]}  Kh6 {[%clk 0:00:03]} 40. Rh7+ {[%clk 0:00:21]}  Kg5 {[%clk 0:00:03]} 41. Kg3 {[%clk 0:00:17]}  h4+ {[%clk 0:00:01]} 42. Kf3 {[%clk 0:00:18]} 1-0


[Site "https://www.chess.com"]